[Event "Early-Titled-Tuesday-Blitz-July-09-2024"]
[Site "Chess.com"]
[Date "2024.07.09"]
[Round "9"]
[White "Kildepiotr"]
[Black "ketster"]
[Result "1-0"]
[WhiteElo "2709"]
[BlackElo "2585"]
[TimeControl "180+1"]
[EndTime "9:46:38 PDT"]
[Termination "Kildepiotr won by checkmate"]

1. Nf3 {[%clk 0:03:00.9]} 1... Nf6 {[%clk 0:02:54.4]} 2. g3 {[%clk 0:03:00.5]}
2... d5 {[%clk 0:02:53]} 3. Bg2 {[%clk 0:03:00.6]} 3... e6 {[%clk 0:02:53]} 4.
O-O {[%clk 0:03:00.6]} 4... c5 {[%clk 0:02:53.7]} 5. d3 {[%clk 0:03:01.3]} 5...
Nc6 {[%clk 0:02:53.4]} 6. Nbd2 {[%clk 0:03:02.2]} 6... g6 {[%clk 0:02:54]} 7. e4
{[%clk 0:03:02.6]} 7... Bg7 {[%clk 0:02:54.8]} 8. Qe2 {[%clk 0:03:02.6]} 8...
O-O {[%clk 0:02:55.2]} 9. c3 {[%clk 0:03:02.4]} 9... a5 {[%clk 0:02:53.9]} 10.
Re1 {[%clk 0:02:59.5]} 10... b6 {[%clk 0:02:53.5]} 11. Nf1 {[%clk 0:02:58.1]}
11... dxe4 {[%clk 0:02:51.9]} 12. dxe4 {[%clk 0:02:58.2]} 12... Ba6 {[%clk
0:02:52.2]} 13. Qe3 {[%clk 0:02:54.8]} 13... Ng4 {[%clk 0:02:49.6]} 14. Qg5
{[%clk 0:02:54.5]} 14... Nge5 {[%clk 0:02:44.6]} 15. Qxd8 {[%clk 0:02:51.9]}
15... Rfxd8 {[%clk 0:02:42.4]} 16. Bg5 {[%clk 0:02:51.5]} 16... f6 {[%clk
0:02:40.4]} 17. Nxe5 {[%clk 0:02:44.6]} 17... Nxe5 {[%clk 0:02:41.3]} 18. Be3
{[%clk 0:02:40.7]} 18... Nd3 {[%clk 0:02:35.3]} 19. Reb1 {[%clk 0:02:38.9]}
19... Rab8 {[%clk 0:02:26.4]} 20. Nd2 {[%clk 0:02:36.3]} 20... Kf7 {[%clk
0:02:22]} 21. Bf1 {[%clk 0:02:35.9]} 21... f5 {[%clk 0:02:12.5]} 22. exf5 {[%clk
0:02:34.9]} 22... gxf5 {[%clk 0:02:12.3]} 23. Nf3 {[%clk 0:02:34.2]} 23... h6
{[%clk 0:02:00.8]} 24. Rd1 {[%clk 0:02:32.7]} 24... e5 {[%clk 0:01:48.1]} 25.
Bxh6 {[%clk 0:02:24.6]} 25... e4 {[%clk 0:01:32.1]} 26. Bxg7 {[%clk 0:02:23.5]}
26... Kxg7 {[%clk 0:01:32.5]} 27. Bxd3 {[%clk 0:02:22]} 27... Bxd3 {[%clk
0:01:30.1]} 28. Ne5 {[%clk 0:02:21.5]} 28... Be2 {[%clk 0:01:23.9]} 29. Rd7+
{[%clk 0:01:43.5]} 29... Rxd7 {[%clk 0:01:18.9]} 30. Nxd7 {[%clk 0:01:44.4]}
30... Rb7 {[%clk 0:01:12]} 31. Ne5 {[%clk 0:01:44.2]} 31... Kf6 {[%clk
0:01:00.5]} 32. Re1 {[%clk 0:01:43.7]} 32... Bh5 {[%clk 0:00:45.4]} 33. f4
{[%clk 0:01:43.1]} 33... exf3 {[%clk 0:00:44.9]} 34. Kf2 {[%clk 0:01:39.3]}
34... b5 {[%clk 0:00:33.4]} 35. Nxf3 {[%clk 0:01:37.4]} 35... b4 {[%clk
0:00:32.4]} 36. c4 {[%clk 0:01:34.7]} 36... Rd7 {[%clk 0:00:30.8]} 37. h3 {[%clk
0:01:04.6]} 37... Rd3 {[%clk 0:00:12]} 38. Re3 {[%clk 0:01:03.9]} 38... Rd1
{[%clk 0:00:12.2]} 39. b3 {[%clk 0:00:47.3]} 39... Ra1 {[%clk 0:00:06.5]} 40.
Re2 {[%clk 0:00:47]} 40... Rh1 {[%clk 0:00:06.2]} 41. h4 {[%clk 0:00:42.6]}
41... Ra1 {[%clk 0:00:05.7]} 42. Rd2 {[%clk 0:00:41.1]} 42... Bxf3 {[%clk
0:00:04]} 43. Kxf3 {[%clk 0:00:41.2]} 43... Rf1+ {[%clk 0:00:04.6]} 44. Rf2
{[%clk 0:00:39.8]} 44... Ra1 {[%clk 0:00:03.9]} 45. g4 {[%clk 0:00:39.4]} 45...
fxg4+ {[%clk 0:00:03.3]} 46. Kxg4+ {[%clk 0:00:40.3]} 46... Kg6 {[%clk
0:00:04.2]} 47. Kf4 {[%clk 0:00:39.8]} 47... Rh1 {[%clk 0:00:03.6]} 48. Ke5
{[%clk 0:00:38.1]} 48... Rxh4 {[%clk 0:00:03]} 49. Kd6 {[%clk 0:00:38.1]} 49...
Rh5 {[%clk 0:00:03.1]} 50. Kc6 {[%clk 0:00:36.2]} 50... Re5 {[%clk 0:00:01.9]}
51. Kb5 {[%clk 0:00:35.8]} 51... a4 {[%clk 0:00:01.7]} 52. Kxa4 {[%clk
0:00:34.7]} 52... Re8 {[%clk 0:00:01]} 53. Kb5 {[%clk 0:00:34.3]} 53... Re5
{[%clk 0:00:01]} 54. Rd2 {[%clk 0:00:32.5]} 54... Kf6 {[%clk 0:00:01.1]} 55. Rd5
{[%clk 0:00:32.7]} 55... Re2 {[%clk 0:00:01.5]} 56. Rxc5 {[%clk 0:00:33.2]}
56... Rxa2 {[%clk 0:00:01.9]} 57. Kxb4 {[%clk 0:00:33.7]} 57... Ke6 {[%clk
0:00:02.4]} 58. Rd5 {[%clk 0:00:34.3]} 58... Rb2 {[%clk 0:00:02.2]} 59. Rd3
{[%clk 0:00:33.7]} 59... Rb1 {[%clk 0:00:03.1]} 60. Kc5 {[%clk 0:00:33.7]} 60...
Ke7 {[%clk 0:00:04]} 61. b4 {[%clk 0:00:34]} 61... Rb2 {[%clk 0:00:04.9]} 62. b5
{[%clk 0:00:34.5]} 62... Ke6 {[%clk 0:00:05.8]} 63. Kc6 {[%clk 0:00:34.7]} 63...
Rb1 {[%clk 0:00:06.7]} 64. c5 {[%clk 0:00:35.2]} 64... Ke7 {[%clk 0:00:07.6]}
65. b6 {[%clk 0:00:35.7]} 65... Rc1 {[%clk 0:00:08.5]} 66. Rd5 {[%clk
0:00:33.8]} 66... Ke6 {[%clk 0:00:09.4]} 67. Rd2 {[%clk 0:00:33.6]} 67... Rb1
{[%clk 0:00:08.9]} 68. Re2+ {[%clk 0:00:33.1]} 68... Kf7 {[%clk 0:00:08.9]} 69.
b7 {[%clk 0:00:33.4]} 69... Rb2 {[%clk 0:00:09.1]} 70. Rxb2 {[%clk 0:00:33]}
70... Kf6 {[%clk 0:00:08.9]} 71. Kc7 {[%clk 0:00:33]} 71... Ke5 {[%clk
0:00:09.1]} 72. b8=Q {[%clk 0:00:33.4]} 72... Kd4 {[%clk 0:00:10]} 73. Qd8+
{[%clk 0:00:33.5]} 73... Kc3 {[%clk 0:00:10.9]} 74. Qd2+ {[%clk 0:00:33.3]}
74... Kc4 {[%clk 0:00:10.6]} 75. Rb4+ {[%clk 0:00:34.1]} 75... Kxc5 {[%clk
0:00:11.1]} 76. Qd6# {[%clk 0:00:34.8]} 1-0

[Event "Early-Titled-Tuesday-Blitz-July-09-2024"]
[Site "Chess.com"]
[Date "2024.07.09"]
[Round "9"]
[White "Fandorine"]
[Black "baki83"]
[Result "1/2-1/2"]
[WhiteElo "2917"]
[BlackElo "2821"]
[TimeControl "180+1"]
[EndTime "9:46:40 PDT"]
[Termination "Game drawn by repetition"]

1. c4 {[%clk 0:03:00.9]} 1... e5 {[%clk 0:02:59.8]} 2. g3 {[%clk 0:03:00.9]}
2... c6 {[%clk 0:02:59.8]} 3. d4 {[%clk 0:02:59]} 3... e4 {[%clk 0:02:59.8]} 4.
d5 {[%clk 0:02:59.4]} 4... Bb4+ {[%clk 0:02:59.2]} 5. Bd2 {[%clk 0:02:59.5]}
5... Bxd2+ {[%clk 0:02:54.4]} 6. Qxd2 {[%clk 0:02:59.2]} 6... d6 {[%clk
0:02:53.2]} 7. Nc3 {[%clk 0:02:58.5]} 7... Nf6 {[%clk 0:02:53.3]} 8. Bg2 {[%clk
0:02:58.4]} 8... Qe7 {[%clk 0:02:53.4]} 9. dxc6 {[%clk 0:02:41.8]} 9... Nxc6
{[%clk 0:02:51]} 10. Rd1 {[%clk 0:02:42.4]} 10... Be6 {[%clk 0:02:42.1]} 11. b3
{[%clk 0:02:19.4]} 11... O-O-O {[%clk 0:02:39.4]} 12. Nxe4 {[%clk 0:01:56.4]}
12... Nxe4 {[%clk 0:02:18.3]} 13. Bxe4 {[%clk 0:01:56.4]} 13... Rhe8 {[%clk
0:02:18.9]} 14. Bxc6 {[%clk 0:01:24.3]} 14... bxc6 {[%clk 0:02:18.6]} 15. Nf3
{[%clk 0:01:24.8]} 15... Bh3 {[%clk 0:02:08.6]} 16. Nd4 {[%clk 0:01:05.4]} 16...
c5 {[%clk 0:02:08.6]} 17. Nb5 {[%clk 0:01:04.7]} 17... d5 {[%clk 0:01:37.8]} 18.
cxd5 {[%clk 0:00:53.8]} 18... Rxd5 {[%clk 0:01:36.9]} 19. Nxa7+ {[%clk
0:00:40.8]} 19... Kc7 {[%clk 0:01:19.8]} 20. Qa5+ {[%clk 0:00:40.7]} 20... Kb7
{[%clk 0:01:18.7]} 21. Qb5+ {[%clk 0:00:40]} 21... Kxa7 {[%clk 0:01:18.6]} 22.
Rxd5 {[%clk 0:00:40.2]} 22... Qe4 {[%clk 0:01:16.3]} 23. Qxc5+ {[%clk
0:00:32.8]} 23... Kb7 {[%clk 0:01:15.2]} 24. Qb5+ {[%clk 0:00:26.1]} 24... Kc7
{[%clk 0:01:04.8]} 25. Qc4+ {[%clk 0:00:10.2]} 25... Qxc4 {[%clk 0:01:00.5]} 26.
bxc4 {[%clk 0:00:11.1]} 26... Bg2 {[%clk 0:01:01.2]} 27. Rg1 {[%clk 0:00:11.2]}
27... Bxd5 {[%clk 0:01:01.3]} 28. cxd5 {[%clk 0:00:12.1]} 28... Ra8 {[%clk
0:00:58.5]} 29. f3 {[%clk 0:00:09.6]} 29... Kd6 {[%clk 0:00:57.8]} 30. Kf2
{[%clk 0:00:09.5]} 30... Kxd5 {[%clk 0:00:57.2]} 31. Rd1+ {[%clk 0:00:10.1]}
31... Ke6 {[%clk 0:00:56.9]} 32. Ra1 {[%clk 0:00:10.5]} 32... Ra3 {[%clk
0:00:57.2]} 33. Ke1 {[%clk 0:00:10]} 33... Ke5 {[%clk 0:00:56.1]} 34. Kd2 {[%clk
0:00:10.7]} 34... Kd4 {[%clk 0:00:56.7]} 35. Kc2 {[%clk 0:00:11.3]} 35... Ke3
{[%clk 0:00:55.5]} 36. Kb2 {[%clk 0:00:10.2]} 36... Ra7 {[%clk 0:00:55.5]} 37.
a4 {[%clk 0:00:09.4]} 37... Kxe2 {[%clk 0:00:56.1]} 38. Ra3 {[%clk 0:00:09.9]}
38... Kf2 {[%clk 0:00:52.4]} 39. a5 {[%clk 0:00:06.4]} 39... Kg2 {[%clk
0:00:51.9]} 40. g4 {[%clk 0:00:06.7]} 40... Kxh2 {[%clk 0:00:51.7]} 41. Kc3
{[%clk 0:00:07.4]} 41... g6 {[%clk 0:00:47.2]} 42. g5 {[%clk 0:00:07.4]} 42...
Kg3 {[%clk 0:00:47.3]} 43. Kd4 {[%clk 0:00:05]} 43... Kf4 {[%clk 0:00:47.7]} 44.
Kc5 {[%clk 0:00:04]} 44... Kxg5 {[%clk 0:00:47.9]} 45. Kb6 {[%clk 0:00:04.4]}
45... Ra8 {[%clk 0:00:46.4]} 46. a6 {[%clk 0:00:04.8]} 46... Kf4 {[%clk
0:00:42.1]} 47. Kb7 {[%clk 0:00:04.7]} 47... Rxa6 {[%clk 0:00:23.7]} 48. Kxa6
{[%clk 0:00:04.8]} 48... h5 {[%clk 0:00:24]} 49. Kb5 {[%clk 0:00:04.8]} 49... h4
{[%clk 0:00:24.7]} 50. Ra4+ {[%clk 0:00:05.2]} 50... Kxf3 {[%clk 0:00:19.6]} 51.
Rxh4 {[%clk 0:00:05.7]} 51... g5 {[%clk 0:00:20.3]} 52. Rh7 {[%clk 0:00:05.3]}
52... f5 {[%clk 0:00:20.4]} 53. Kc4 {[%clk 0:00:05.9]} 53... g4 {[%clk
0:00:20.3]} 54. Kd3 {[%clk 0:00:04.2]} 54... g3 {[%clk 0:00:20.7]} 55. Rg7
{[%clk 0:00:04.4]} 55... f4 {[%clk 0:00:16.4]} 56. Kd4 {[%clk 0:00:02.7]} 56...
Ke2 {[%clk 0:00:06.3]} 57. Ke4 {[%clk 0:00:02.8]} 57... f3 {[%clk 0:00:06.7]}
58. Rxg3 {[%clk 0:00:03.3]} 58... f2 {[%clk 0:00:07.3]} 59. Re3+ {[%clk
0:00:03]} 59... Kd2 {[%clk 0:00:07.6]} 60. Rd3+ {[%clk 0:00:03.1]} 60... Ke2
{[%clk 0:00:08]} 61. Re3+ {[%clk 0:00:03.8]} 61... Kd2 {[%clk 0:00:08.5]} 62.
Rf3 {[%clk 0:00:04.4]} 62... Ke2 {[%clk 0:00:08.8]} 63. Re3+ {[%clk 0:00:05.1]}
1/2-1/2

[Event "Early-Titled-Tuesday-Blitz-July-09-2024"]
[Site "Chess.com"]
[Date "2024.07.09"]
[Round "9"]
[White "ural58"]
[Black "Baronessa08"]
[Result "1/2-1/2"]
[WhiteElo "2439"]
[BlackElo "2587"]
[TimeControl "180+1"]
[EndTime "9:46:40 PDT"]
[Termination "Game drawn - insufficient material"]

1. e4 {[%clk 0:02:35.8]} 1... e5 {[%clk 0:02:59.3]} 2. f4 {[%clk 0:02:33.8]}
2... d5 {[%clk 0:02:57.7]} 3. exd5 {[%clk 0:02:33]} 3... exf4 {[%clk 0:02:57.8]}
4. Nf3 {[%clk 0:02:32.9]} 4... Nf6 {[%clk 0:02:54.4]} 5. Bb5+ {[%clk 0:02:32.4]}
5... c6 {[%clk 0:02:54.4]} 6. dxc6 {[%clk 0:02:32.4]} 6... Nxc6 {[%clk
0:02:54.7]} 7. Nc3 {[%clk 0:02:32.1]} 7... Bd6 {[%clk 0:02:50]} 8. Qe2+ {[%clk
0:02:32]} 8... Be6 {[%clk 0:02:45.4]} 9. Nd4 {[%clk 0:02:31.8]} 9... O-O {[%clk
0:02:36.8]} 10. Nxe6 {[%clk 0:02:31.4]} 10... fxe6 {[%clk 0:02:37.7]} 11. Bxc6
{[%clk 0:02:31.3]} 11... bxc6 {[%clk 0:02:37.2]} 12. b3 {[%clk 0:02:31.5]} 12...
e5 {[%clk 0:02:29.1]} 13. Bb2 {[%clk 0:02:30.9]} 13... Qd7 {[%clk 0:02:01.3]}
14. O-O-O {[%clk 0:02:29.5]} 14... Rae8 {[%clk 0:02:01.1]} 15. g3 {[%clk
0:02:26.2]} 15... Nd5 {[%clk 0:01:53.9]} 16. Nxd5 {[%clk 0:02:21.7]} 16... cxd5
{[%clk 0:01:53.5]} 17. gxf4 {[%clk 0:02:21.6]} 17... Rxf4 {[%clk 0:01:50.3]} 18.
Rhg1 {[%clk 0:02:17.5]} 18... d4 {[%clk 0:01:39.6]} 19. Rg3 {[%clk 0:02:01.5]}
19... Ref8 {[%clk 0:01:35]} 20. Rdg1 {[%clk 0:01:57.8]} 20... g6 {[%clk
0:01:33.2]} 21. Kb1 {[%clk 0:01:52.9]} 21... Rf2 {[%clk 0:01:31.5]} 22. Qd3
{[%clk 0:01:49.4]} 22... Qf5 {[%clk 0:01:30.4]} 23. Qc4+ {[%clk 0:01:31.8]}
23... Kg7 {[%clk 0:01:29.3]} 24. Rc1 {[%clk 0:01:02.2]} 24... Rxd2 {[%clk
0:01:25.4]} 25. Qd5 {[%clk 0:01:00.9]} 25... Bc7 {[%clk 0:01:15.6]} 26. Qb7
{[%clk 0:00:53.9]} 26... Rf7 {[%clk 0:01:14.5]} 27. h4 {[%clk 0:00:50.7]} 27...
Rh2 {[%clk 0:01:10.7]} 28. Rg5 {[%clk 0:00:37]} 28... Qf3 {[%clk 0:01:04.8]} 29.
Qxa7 {[%clk 0:00:30]} 29... Rxh4 {[%clk 0:01:04]} 30. Rcg1 {[%clk 0:00:24]}
30... Rh1 {[%clk 0:01:02.8]} 31. Bxd4 {[%clk 0:00:18.8]} 31... exd4 {[%clk
0:00:48.4]} 32. Qxd4+ {[%clk 0:00:18.5]} 32... Qf6 {[%clk 0:00:46.5]} 33. Rxg6+
{[%clk 0:00:11.5]} 33... hxg6 {[%clk 0:00:45.9]} 34. Qxf6+ {[%clk 0:00:12.1]}
34... Rxf6 {[%clk 0:00:44.5]} 35. Rxh1 {[%clk 0:00:12.8]} 35... g5 {[%clk
0:00:44.8]} 36. Rg1 {[%clk 0:00:13.1]} 36... Kg6 {[%clk 0:00:44.6]} 37. a4
{[%clk 0:00:13.5]} 37... Rf4 {[%clk 0:00:42.4]} 38. Kb2 {[%clk 0:00:13.2]} 38...
g4 {[%clk 0:00:42.8]} 39. c3 {[%clk 0:00:13.2]} 39... Kg5 {[%clk 0:00:42.1]} 40.
b4 {[%clk 0:00:13]} 40... Rf2+ {[%clk 0:00:41]} 41. Kb3 {[%clk 0:00:13.1]} 41...
g3 {[%clk 0:00:41.7]} 42. a5 {[%clk 0:00:13.4]} 42... Kg4 {[%clk 0:00:41.9]} 43.
c4 {[%clk 0:00:13.6]} 43... g2 {[%clk 0:00:41]} 44. c5 {[%clk 0:00:13.3]} 44...
Kh3 {[%clk 0:00:40]} 45. a6 {[%clk 0:00:13.5]} 45... Bh2 {[%clk 0:00:21.4]} 46.
a7 {[%clk 0:00:09.7]} 46... Rf8 {[%clk 0:00:19.9]} 47. Rxg2 {[%clk 0:00:08.3]}
47... Kxg2 {[%clk 0:00:19.9]} 48. b5 {[%clk 0:00:08.9]} 48... Bg1 {[%clk
0:00:19.2]} 49. Kb4 {[%clk 0:00:07.2]} 49... Rc8 {[%clk 0:00:16.7]} 50. b6
{[%clk 0:00:03.9]} 50... Bxc5+ {[%clk 0:00:16.6]} 51. Kb5 {[%clk 0:00:04.5]}
51... Bxb6 {[%clk 0:00:08.5]} 52. Kxb6 {[%clk 0:00:04.3]} 52... Kf3 {[%clk
0:00:08.6]} 53. Kb7 {[%clk 0:00:04.4]} 53... Rh8 {[%clk 0:00:08.9]} 54. a8=Q
{[%clk 0:00:05.3]} 54... Rxa8 {[%clk 0:00:08.8]} 55. Kxa8 {[%clk 0:00:06.2]}
1/2-1/2

[Event "Early-Titled-Tuesday-Blitz-July-09-2024"]
[Site "Chess.com"]
[Date "2024.07.09"]
[Round "9"]
[White "TigrVShlyape"]
[Black "alexrustemov"]
[Result "1/2-1/2"]
[WhiteElo "2979"]
[BlackElo "2886"]
[TimeControl "180+1"]
[EndTime "9:46:43 PDT"]
[Termination "Game drawn by repetition"]

1. d4 {[%clk 0:02:53.8]} 1... d5 {[%clk 0:02:58.5]} 2. Bf4 {[%clk 0:02:53.9]}
2... Nf6 {[%clk 0:02:57.7]} 3. e3 {[%clk 0:02:54.2]} 3... c5 {[%clk 0:02:57.8]}
4. c3 {[%clk 0:02:54.1]} 4... Nc6 {[%clk 0:02:57.8]} 5. Nd2 {[%clk 0:02:54]}
5... Bg4 {[%clk 0:02:57.7]} 6. Ngf3 {[%clk 0:02:51.8]} 6... e6 {[%clk
0:02:57.6]} 7. Bb5 {[%clk 0:02:51]} 7... Qb6 {[%clk 0:02:56.6]} 8. Qa4 {[%clk
0:02:50.3]} 8... Bxf3 {[%clk 0:02:48.8]} 9. Nxf3 {[%clk 0:02:49.6]} 9... Nd7
{[%clk 0:02:48.3]} 10. O-O {[%clk 0:02:46.5]} 10... a6 {[%clk 0:02:46.6]} 11. c4
{[%clk 0:02:40.5]} 11... Rc8 {[%clk 0:02:42.1]} 12. Bxc6 {[%clk 0:02:39.5]}
12... Qxc6 {[%clk 0:02:41.2]} 13. Qxc6 {[%clk 0:02:38.4]} 13... bxc6 {[%clk
0:02:41.1]} 14. Rfc1 {[%clk 0:02:37.6]} 14... Be7 {[%clk 0:02:38.4]} 15. Rc2
{[%clk 0:02:37.5]} 15... f6 {[%clk 0:02:26.1]} 16. Rac1 {[%clk 0:02:33.3]} 16...
Kf7 {[%clk 0:02:26.3]} 17. h4 {[%clk 0:02:02.2]} 17... h5 {[%clk 0:02:23.1]} 18.
Ne1 {[%clk 0:01:48.3]} 18... a5 {[%clk 0:02:06.8]} 19. Nd3 {[%clk 0:01:47.4]}
19... cxd4 {[%clk 0:01:53.8]} 20. exd4 {[%clk 0:01:42.4]} 20... Nb6 {[%clk
0:01:38.3]} 21. cxd5 {[%clk 0:01:20.8]} 21... Nxd5 {[%clk 0:01:31.2]} 22. Rxc6
{[%clk 0:01:14.1]} 22... Rxc6 {[%clk 0:01:31.5]} 23. Rxc6 {[%clk 0:01:13.6]}
23... Nb4 {[%clk 0:01:29.9]} 24. Nxb4 {[%clk 0:01:12.9]} 24... axb4 {[%clk
0:01:30.3]} 25. Bd6 {[%clk 0:01:04.9]} 25... Bxd6 {[%clk 0:01:24.4]} 26. Rxd6
{[%clk 0:01:04.7]} 26... Ra8 {[%clk 0:01:23.8]} 27. Rb6 {[%clk 0:01:04.2]} 27...
Rxa2 {[%clk 0:01:23.1]} 28. Rxb4 {[%clk 0:01:04.7]} 28... Ra1+ {[%clk
0:01:18.8]} 29. Kh2 {[%clk 0:01:04.1]} 29... Rd1 {[%clk 0:01:19.2]} 30. g3
{[%clk 0:01:03.4]} 30... Kg6 {[%clk 0:01:12.6]} 31. Kg2 {[%clk 0:01:03.4]} 31...
Rd2 {[%clk 0:01:08.3]} 32. Kf3 {[%clk 0:01:03.2]} 32... Kf5 {[%clk 0:01:07.4]}
33. Ke3 {[%clk 0:01:03.2]} 33... Rc2 {[%clk 0:01:06.9]} 34. Rb7 {[%clk
0:00:55.9]} 34... g5 {[%clk 0:01:02.3]} 35. hxg5 {[%clk 0:00:52.6]} 35... fxg5
{[%clk 0:01:01.7]} 36. Rb5+ {[%clk 0:00:51.8]} 36... Kf6 {[%clk 0:00:58]} 37. f4
{[%clk 0:00:43.7]} 37... g4 {[%clk 0:00:49.7]} 38. Rxh5 {[%clk 0:00:41.4]} 38...
Rg2 {[%clk 0:00:47]} 39. d5 {[%clk 0:00:22.5]} 39... Rxg3+ {[%clk 0:00:44.7]}
40. Ke4 {[%clk 0:00:22.7]} 40... exd5+ {[%clk 0:00:39.7]} 41. Rxd5 {[%clk
0:00:22.6]} 41... Rb3 {[%clk 0:00:37.7]} 42. Rd6+ {[%clk 0:00:22.2]} 42... Ke7
{[%clk 0:00:35.3]} 43. Rd2 {[%clk 0:00:21.8]} 43... Kf6 {[%clk 0:00:33.7]} 44.
Rd6+ {[%clk 0:00:20.7]} 44... Ke7 {[%clk 0:00:33.8]} 45. Rg6 {[%clk 0:00:20.7]}
45... Rxb2 {[%clk 0:00:32.4]} 46. Kf5 {[%clk 0:00:20.8]} 46... Rb5+ {[%clk
0:00:31.4]} 47. Kxg4 {[%clk 0:00:21.1]} 47... Kf7 {[%clk 0:00:31.9]} 48. Rg5
{[%clk 0:00:21.1]} 48... Rb1 {[%clk 0:00:29.5]} 49. Ra5 {[%clk 0:00:20.8]} 49...
Kf6 {[%clk 0:00:27.9]} 50. Ra6+ {[%clk 0:00:20.5]} 50... Kf7 {[%clk 0:00:28.2]}
51. Kg5 {[%clk 0:00:21]} 51... Rb5+ {[%clk 0:00:27.6]} 52. f5 {[%clk 0:00:21.4]}
52... Rb7 {[%clk 0:00:24.9]} 53. Rh6 {[%clk 0:00:20.9]} 53... Rb1 {[%clk
0:00:20.7]} 54. Rh7+ {[%clk 0:00:20.5]} 54... Kg8 {[%clk 0:00:20.9]} 55. Ra7
{[%clk 0:00:20.6]} 55... Rb6 {[%clk 0:00:21]} 56. Rc7 {[%clk 0:00:19.3]} 56...
Ra6 {[%clk 0:00:20.7]} 57. Re7 {[%clk 0:00:17.6]} 57... Rb6 {[%clk 0:00:20.5]}
58. Re6 {[%clk 0:00:17.6]} 58... Rb7 {[%clk 0:00:15.7]} 59. Kg6 {[%clk
0:00:16.9]} 59... Rg7+ {[%clk 0:00:15.4]} 60. Kh6 {[%clk 0:00:16.1]} 60... Rh7+
{[%clk 0:00:15.4]} 61. Kg6 {[%clk 0:00:15.9]} 61... Rg7+ {[%clk 0:00:15.6]} 62.
Kf6 {[%clk 0:00:16.5]} 62... Rf7+ {[%clk 0:00:15.9]} 63. Ke5 {[%clk 0:00:17.1]}
63... Ra7 {[%clk 0:00:15.8]} 64. Rb6 {[%clk 0:00:13.4]} 64... Kf7 {[%clk
0:00:15.2]} 65. Rh6 {[%clk 0:00:11.3]} 65... Ra5+ {[%clk 0:00:14.8]} 66. Kf4
{[%clk 0:00:11.2]} 66... Ra1 {[%clk 0:00:15.3]} 67. Rb6 {[%clk 0:00:09.3]} 67...
Rf1+ {[%clk 0:00:14.6]} 68. Ke5 {[%clk 0:00:09.6]} 68... Re1+ {[%clk 0:00:14.9]}
69. Kf4 {[%clk 0:00:10.3]} 69... Rf1+ {[%clk 0:00:15.3]} 70. Ke5 {[%clk
0:00:11]} 70... Re1+ {[%clk 0:00:15.7]} 71. Kf4 {[%clk 0:00:11.7]} 71... Rf1+
{[%clk 0:00:16.1]} 1/2-1/2

[Event "Early-Titled-Tuesday-Blitz-July-09-2024"]
[Site "Chess.com"]
[Date "2024.07.09"]
[Round "9"]
[White "Chessdude1987"]
[Black "ploxoi"]
[Result "1-0"]
[WhiteElo "2349"]
[BlackElo "2465"]
[TimeControl "180+1"]
[EndTime "9:46:54 PDT"]
[Termination "Chessdude1987 won by resignation"]

1. e4 {[%clk 0:03:00.9]} 1... c5 {[%clk 0:03:00]} 2. Nf3 {[%clk 0:03:00.4]} 2...
e6 {[%clk 0:03:00.4]} 3. d4 {[%clk 0:02:56.5]} 3... cxd4 {[%clk 0:03:01.3]} 4.
Nxd4 {[%clk 0:02:56.7]} 4... Nc6 {[%clk 0:03:02]} 5. Nc3 {[%clk 0:02:56.6]} 5...
Qc7 {[%clk 0:03:01.5]} 6. g3 {[%clk 0:02:56.6]} 6... a6 {[%clk 0:03:00]} 7. Bg2
{[%clk 0:02:55.8]} 7... Nf6 {[%clk 0:02:59.7]} 8. O-O {[%clk 0:02:55.3]} 8...
Nxd4 {[%clk 0:02:59.8]} 9. Qxd4 {[%clk 0:02:54.8]} 9... Bc5 {[%clk 0:03:00.4]}
10. Qd1 {[%clk 0:02:55.2]} 10... h6 {[%clk 0:02:58.6]} 11. Re1 {[%clk
0:02:55.3]} 11... d6 {[%clk 0:02:59]} 12. Be3 {[%clk 0:02:48.7]} 12... O-O
{[%clk 0:02:57.5]} 13. Qd2 {[%clk 0:02:40.6]} 13... Bxe3 {[%clk 0:02:40.5]} 14.
Rxe3 {[%clk 0:02:40.1]} 14... Rd8 {[%clk 0:02:31.7]} 15. Rd3 {[%clk 0:02:38.7]}
15... Rb8 {[%clk 0:02:27.4]} 16. Rd1 {[%clk 0:02:38.3]} 16... Ne8 {[%clk
0:02:27.8]} 17. h4 {[%clk 0:02:23.9]} 17... b5 {[%clk 0:02:25.5]} 18. Ne2 {[%clk
0:02:21.7]} 18... Bb7 {[%clk 0:02:24.3]} 19. Nf4 {[%clk 0:02:20.7]} 19... Bc6
{[%clk 0:02:21.3]} 20. Nh5 {[%clk 0:02:14.8]} 20... Qb7 {[%clk 0:02:17.5]} 21.
Qe2 {[%clk 0:02:05.4]} 21... g6 {[%clk 0:01:58.5]} 22. Nf4 {[%clk 0:02:02.7]}
22... e5 {[%clk 0:01:46.8]} 23. Nd5 {[%clk 0:02:02.5]} 23... Bxd5 {[%clk
0:01:46.3]} 24. Rxd5 {[%clk 0:02:02.6]} 24... Rbc8 {[%clk 0:01:46.7]} 25. Qd2
{[%clk 0:01:50]} 25... Kg7 {[%clk 0:01:40.2]} 26. f4 {[%clk 0:01:49.6]} 26... f6
{[%clk 0:00:52.8]} 27. f5 {[%clk 0:01:36]} 27... g5 {[%clk 0:00:50.5]} 28. Qe2
{[%clk 0:01:28.9]} 28... Rc6 {[%clk 0:00:47]} 29. Bf3 {[%clk 0:01:24.4]} 29...
b4 {[%clk 0:00:38.5]} 30. R5d2 {[%clk 0:01:14.1]} 30... Nc7 {[%clk 0:00:35]} 31.
Bh5 {[%clk 0:01:13.7]} 31... Nb5 {[%clk 0:00:34.9]} 32. Bg6 {[%clk 0:01:10.1]}
32... Nd4 {[%clk 0:00:32.5]} 33. Qh5 {[%clk 0:01:05.9]} 33... Rh8 {[%clk
0:00:31.8]} 34. Be8 {[%clk 0:01:02.5]} 34... Rxe8 {[%clk 0:00:13]} 35. Qxe8
{[%clk 0:00:54]} 35... Qf7 {[%clk 0:00:13.5]} 36. Qxf7+ {[%clk 0:00:41.7]} 36...
Kxf7 {[%clk 0:00:14.4]} 37. Kf2 {[%clk 0:00:40.8]} 37... a5 {[%clk 0:00:11.2]}
38. Rc1 {[%clk 0:00:37.7]} 38... Rc4 {[%clk 0:00:07.8]} 39. c3 {[%clk
0:00:34.1]} 39... Nb5 {[%clk 0:00:07.7]} 40. Rd5 {[%clk 0:00:26.6]} 40... Nc7
{[%clk 0:00:02.3]} 41. Rxd6 {[%clk 0:00:26.2]} 41... Ke7 {[%clk 0:00:03]} 42.
Rdd1 {[%clk 0:00:21.2]} 42... gxh4 {[%clk 0:00:02.4]} 43. gxh4 {[%clk
0:00:20.4]} 43... Rxe4 {[%clk 0:00:02.8]} 44. cxb4 {[%clk 0:00:20.5]} 44... Rf4+
{[%clk 0:00:03.4]} 45. Kg3 {[%clk 0:00:20.2]} 45... Nb5 {[%clk 0:00:03.8]} 46.
bxa5 {[%clk 0:00:17]} 46... Nd4 {[%clk 0:00:04.4]} 47. Rxd4 {[%clk 0:00:10.2]}
47... Rxd4 {[%clk 0:00:04.2]} 48. Rc7+ {[%clk 0:00:09.4]} 48... Ke8 {[%clk
0:00:03.2]} 49. Rh7 {[%clk 0:00:08]} 49... Rf4 {[%clk 0:00:03.5]} 50. Rxh6
{[%clk 0:00:07.6]} 50... Rxf5 {[%clk 0:00:04.1]} 51. Rh7 {[%clk 0:00:06.9]}
51... Rf4 {[%clk 0:00:03.7]} 52. Ra7 {[%clk 0:00:06.2]} 52... Ra4 {[%clk
0:00:03.8]} 53. a3 {[%clk 0:00:05.9]} 53... f5 {[%clk 0:00:02.8]} 54. b4 {[%clk
0:00:05.9]} 54... Rxa3+ {[%clk 0:00:02.8]} 55. Kf2 {[%clk 0:00:06.1]} 55... Ra4
{[%clk 0:00:03.7]} 56. b5 {[%clk 0:00:05.7]} 56... f4 {[%clk 0:00:04.2]} 57. b6
{[%clk 0:00:05.8]} 57... e4 {[%clk 0:00:04.7]} 58. b7 {[%clk 0:00:05.9]} 58...
Ra2+ {[%clk 0:00:03.2]} 59. Ke1 {[%clk 0:00:04.9]} 59... f3 {[%clk 0:00:01.8]}
60. Ra8+ {[%clk 0:00:03.8]} 1-0